fUST/lending_fUST_20250610
["ID","MTS","AMOUNT","RATE_DAILY","PERIOD"]
[365247528,1749563438151,-1076.66,0.00019823,2]
[365247529,1749563438162,-184.384016,0.00019843,2]
[365247530,1749563438172,-187.399233,0.00020042,2]
[365247531,1749563438183,-407.989152,0.00020187,2]
[365247532,1749563438194,-168.401,0.00020369,2]
[365247533,1749563438208,-2153.33,0.00020767,2]
[365247535,1749563438220,-181.39076592,0.00020995,2]
[365247538,1749563438233,-1000.0,0.00021,21]
[365247540,1749563438245,-800.0,0.00021,2]
[365247541,1749563438256,-46787.04100408,0.00021,2]
[365247542,1749563438275,-1550.49836583,0.00021,2]
[365247543,1749563438284,-621.86154189,0.00021073,2]
[365247544,1749563438294,-500.0,0.00021073,2]
[365247545,1749563438305,-1511.2,0.00021085,3]
[365247546,1749563438317,-885.85,0.00021085,3]
[365247547,1749563438327,-442.93,0.00021085,3]
[365247548,1749563438338,-221.46,0.00021085,3]
[365247549,1749563438348,-664.43,0.00021085,3]
[365247550,1749563438359,-157.00157095,0.00021094,2]
[365247551,1749563438371,-314.54692683,0.00021094,2]
[365247553,1749563438474,-28.45150222,0.00021094,2]
[365247555,1749563438484,-160.0,0.00021094,2]
[365247557,1749563438496,-430.0,0.00021095,4]
[365247559,1749563438507,-430.0,0.00021095,4]
[365247561,1749563438518,-425.43897391,0.00021095,4]
[365247563,1749563438528,-410.0,0.00021095,4]
[365247565,1749563438538,-468.6610821,0.00021095,4]
[365247568,1749563438550,-460.0,0.00021095,4]
[365247570,1749563438561,-460.0,0.00021095,4]
[365247572,1749563438571,-440.0,0.00021095,4]
[365247574,1749563438581,-460.0,0.00021095,4]
[365247577,1749563438592,-440.0,0.00021095,4]
[365247580,1749563438602,-440.0,0.00021095,4]
[365247583,1749563438613,-410.04239478,0.00021095,4]
[365247586,1749563438629,-49.95760522,0.00021095,4]
[365247589,1749563438642,-430.0,0.00021095,4]
[365247592,1749563438652,-460.0,0.00021095,4]
[365247594,1749563438662,-430.91064601,0.00021095,4]
[365247596,1749563438672,-304.85327493,0.00021095,4]
[365247598,1749563438682,-460.0,0.00021095,4]
[365247600,1749563438693,-413.94152853,0.00021095,4]
[365247604,1749563438708,-440.0,0.00021095,4]
[365247607,1749563438720,-460.0,0.00021095,4]
[365247610,1749563438731,-440.0,0.00021095,4]
[365247614,1749563438741,-440.0,0.00021095,4]
[365247617,1749563438752,-460.0,0.00021095,4]
[365247619,1749563438762,-460.0,0.00021095,4]
[365247621,1749563438775,-440.0,0.00021095,4]
[365247624,1749563438786,-500.0,0.00021095,4]
[365247626,1749563438796,-440.0,0.00021095,4]
[365247627,1749563438808,-440.0,0.00021095,4]
[365247628,1749563438818,-460.0,0.00021095,4]
[365247629,1749563438829,-460.0,0.00021095,4]
[365247630,1749563438839,-407.82564367,0.00021095,4]
[365247631,1749563438850,-444.02955047,0.00021095,4]
[365247632,1749563438860,-460.0,0.00021095,4]
[365247633,1749563438871,-460.0,0.00021095,4]
[365247634,1749563438882,-440.0,0.00021095,4]
[365247635,1749563438893,-440.0,0.00021095,4]
[365247636,1749563438904,-460.0,0.00021095,4]
[365247637,1749563438915,-535.6424669,0.00021095,4]
[365247638,1749563438926,-440.0,0.00021095,4]
[365247639,1749563438936,-460.0,0.00021095,4]
[365247640,1749563438946,-460.0,0.00021095,4]
[365247641,1749563438958,-460.0,0.00021095,4]
[365247642,1749563438970,-460.0,0.00021095,4]
[365247643,1749563438980,-440.48983051,0.00021095,4]
[365247644,1749563438991,-460.0,0.00021095,4]
[365247645,1749563439003,-460.0,0.00021095,4]
[365247646,1749563439015,-460.0,0.00021095,4]
[365247647,1749563439027,-444.05612593,0.00021095,4]
[365247648,1749563439038,-446.2529394,0.00021095,4]
[365247649,1749563439050,-460.0,0.00021095,4]
[365247650,1749563439062,-440.0,0.00021095,4]
[365247651,1749563439073,-460.0,0.00021095,4]
[365247652,1749563439084,-500.0,0.00021095,4]
[365247653,1749563439094,-460.0,0.00021095,4]
[365247654,1749563439105,-460.0,0.00021095,4]
[365247655,1749563439117,-447.50886659,0.00021095,4]
[365247656,1749563439127,-440.0,0.00021095,4]
[365247657,1749563439139,-460.0,0.00021095,4]
[365247658,1749563439152,-440.0,0.00021095,4]
[365247659,1749563439162,-299.57870198,0.00021095,4]
[365247660,1749563439177,-145.6003858,0.00021095,4]
[365247661,1749563439189,-441.43402327,0.00021095,4]
[365247662,1749563439200,-430.0,0.00021095,4]
[365247663,1749563439212,-440.0,0.00021095,4]
[365247664,1749563439227,-440.0,0.00021095,4]
[365247665,1749563439239,-473.46874608,0.00021095,4]
[365247666,1749563439251,-222.80549139,0.00021095,4]
[365247667,1749563439262,-444.20666118,0.00021095,4]
[365247668,1749563439281,-460.0,0.00021095,4]
[365247669,1749563439292,-430.0,0.00021095,4]
[365247670,1749563439304,-460.0,0.00021095,4]
[365247671,1749563439317,-460.0,0.00021095,4]
[365247672,1749563439328,-460.0,0.00021095,4]
[365247673,1749563439339,-460.0,0.00021095,4]
[365247674,1749563439351,-441.33120913,0.00021095,4]
[365247675,1749563439363,-440.0,0.00021095,4]
[365247676,1749563439373,-154.39118639,0.00021095,4]
[365247677,1749563439385,-454.04085624,0.00021095,4]
[365247678,1749563439396,-440.0,0.00021095,4]
[365247679,1749563439407,-440.0,0.00021095,4]
[365247680,1749563439417,-451.7783343,0.00021095,4]
[365247681,1749563439428,-440.0,0.00021095,4]
[365247682,1749563439438,-460.0,0.00021095,4]
[365247683,1749563439449,-440.0,0.00021095,4]
[365247684,1749563439460,-460.0,0.00021095,4]
[365247685,1749563439471,-460.0,0.00021095,4]
[365247686,1749563439482,-456.89410942,0.00021095,4]
[365247687,1749563439492,-460.0,0.00021095,4]
[365247688,1749563439503,-440.0,0.00021095,4]
[365247689,1749563439513,-440.0,0.00021095,4]
[365247690,1749563439528,-440.0,0.00021095,4]
[365247691,1749563439538,-582.3619339,0.00021095,4]
[365247692,1749563439549,-390.0,0.00021095,4]
[365247693,1749563439560,-460.0,0.00021095,4]
[365247694,1749563439570,-430.0,0.00021095,4]
[365247695,1749563439580,-294.88729475,0.00021095,4]
[365247696,1749563439788,-460.0,0.00021095,4]
[365247697,1749563439809,-430.0,0.00021095,4]
[365247698,1749563439822,-460.0,0.00021095,4]
[365247699,1749563439832,-430.0,0.00021095,4]
[365247701,1749563439841,-430.0,0.00021095,4]
[365247702,1749563439851,-460.0,0.00021095,4]
[365247703,1749563439861,-460.0,0.00021095,4]
[365247704,1749563439871,-430.0,0.00021095,4]
[365247705,1749563439880,-460.0,0.00021095,4]
[365247706,1749563439891,-460.0,0.00021095,4]
[365247707,1749563439901,-460.0,0.00021095,4]
[365247708,1749563439911,-440.0,0.00021095,4]
[365247709,1749563439921,-400.0,0.00021095,4]
[365247710,1749563439930,-430.0,0.00021095,4]
[365247711,1749563439940,-430.0,0.00021095,4]
[365247712,1749563439950,-460.0,0.00021095,4]
[365247713,1749563439960,-460.0,0.00021095,4]
[365247714,1749563439972,-500.0,0.00021095,4]
[365247715,1749563439982,-432.78983242,0.00021095,4]
[365247716,1749563439992,-440.0,0.00021095,4]
[365247717,1749563440002,-430.0,0.00021095,4]
[365247718,1749563440014,-430.0,0.00021095,4]
[365247719,1749563440027,-460.0,0.00021095,4]
[365247720,1749563440036,-460.0,0.00021095,4]
[365247721,1749563440047,-460.0,0.00021095,4]
[365247722,1749563440057,-460.0,0.00021095,4]
[365247723,1749563440067,-440.0,0.00021095,4]
[365247724,1749563440077,-460.0,0.00021095,4]
[365247725,1749563440087,-430.0,0.00021095,4]
[365247726,1749563440096,-347.9317554,0.00021095,4]
[365247727,1749563440106,-440.0,0.00021095,4]
[365247728,1749563440115,-460.0,0.00021095,4]
[365247729,1749563440124,-460.0,0.00021095,4]
[365247730,1749563440134,-440.0,0.00021095,4]
[365247731,1749563440143,-426.59868417,0.00021095,4]
[365247732,1749563440153,-430.0,0.00021095,4]
[365247733,1749563440163,-440.0,0.00021095,4]
[365247734,1749563440173,-460.0,0.00021095,4]
[365247735,1749563440182,-430.0,0.00021095,4]
[365247736,1749563440192,-460.0,0.00021095,4]
[365247737,1749563440201,-449.67162626,0.00021095,4]
[365247738,1749563440210,-460.0,0.00021095,4]
[365247739,1749563440220,-474.9199563,0.00021095,4]
[365247741,1749563440229,-438.49451351,0.00021095,4]
[365247743,1749563440239,-430.0,0.00021095,4]
[365247745,1749563440248,-460.0,0.00021095,4]
[365247747,1749563440257,-440.0,0.00021095,4]
[365247749,1749563440269,-430.75628872,0.00021095,4]
[365247751,1749563440279,-440.0,0.00021095,4]
[365247754,1749563440294,-440.0,0.00021095,4]
[365247756,1749563440303,-430.0,0.00021095,4]
[365247758,1749563440313,-440.0,0.00021095,4]
[365247760,1749563440322,-433.0051875,0.00021095,4]
[365247762,1749563440332,-355.94100041,0.00021095,4]
[365247764,1749563440341,-189.31241294,0.00021095,4]
[365247766,1749563440351,-460.0,0.00021095,4]
[365247768,1749563440361,-460.0,0.00021095,4]
[365247770,1749563440370,-460.0,0.00021095,4]
[365247772,1749563440379,-440.0,0.00021095,4]
[365247774,1749563440389,-430.0,0.00021095,4]
[365247776,1749563440398,-440.0,0.00021095,4]
[365247778,1749563440408,-440.0,0.00021095,4]
[365247780,1749563440420,-481.32024323,0.00021095,4]
[365247782,1749563440429,-460.0,0.00021095,4]
[365247784,1749563440439,-460.0,0.00021095,4]
[365247786,1749563440448,-154.69531629,0.00021095,4]
[365247788,1749563440457,-430.0,0.00021095,4]
[365247790,1749563440467,-460.0,0.00021095,4]
[365247792,1749563440477,-460.0,0.00021095,4]
[365247794,1749563440486,-460.0,0.00021095,4]
[365247796,1749563440496,-460.0,0.00021095,4]
[365247799,1749563440506,-443.4521174,0.00021095,4]
[365247801,1749563440516,-430.0,0.00021095,4]
[365247803,1749563440528,-440.0,0.00021095,4]
[365247805,1749563440538,-460.0,0.00021095,4]
[365247807,1749563440547,-460.0,0.00021095,4]
[365247809,1749563440557,-430.0,0.00021095,4]
[365247811,1749563440567,-460.0,0.00021095,4]
[365247813,1749563440577,-460.0,0.00021095,4]
[365247815,1749563440587,-460.0,0.00021095,4]
[365247817,1749563440596,-460.0,0.00021095,4]
[365247819,1749563440606,-460.0,0.00021095,4]
[365247821,1749563440615,-483.93722922,0.00021095,4]
[365247823,1749563440625,-430.0,0.00021095,4]
[365247825,1749563440634,-460.0,0.00021095,4]
[365247827,1749563440643,-500.0,0.00021095,4]
[365247829,1749563440652,-460.0,0.00021095,4]
[365247831,1749563440662,-460.0,0.00021095,4]
[365247833,1749563440671,-320.0,0.00021095,4]
[365247835,1749563440681,-460.0,0.00021095,4]
[365247837,1749563440690,-460.0,0.00021095,4]
[365247839,1749563440700,-460.0,0.00021095,4]
[365247841,1749563440709,-460.0,0.00021095,4]
[365247843,1749563440719,-460.0,0.00021095,4]
[365247845,1749563440730,-460.0,0.00021095,4]
[365247847,1749563440739,-1110.38,0.00021095,4]
[365247849,1749563440749,-423.5571818,0.00021095,4]
[365247851,1749563440758,-1070.51,0.00021095,4]
[365247853,1749563440770,-480.50022787,0.00021095,4]
[365247855,1749563440780,-440.0,0.00021095,4]
[365247857,1749563440789,-430.0,0.00021095,4]
[365247859,1749563440799,-160.99474585,0.00021095,4]
[365247861,1749563440808,-500.0,0.00021095,4]
[365247863,1749563440818,-500.0,0.00021095,4]
[365247865,1749563440827,-500.0,0.00021095,4]
[365247867,1749563440836,-500.0,0.00021095,4]
[365247869,1749563440845,-500.0,0.00021095,4]
[365247871,1749563440854,-500.0,0.00021095,4]
[365247873,1749563440864,-500.0,0.00021095,4]
[365247875,1749563440873,-500.0,0.00021095,4]
[365247877,1749563440883,-500.0,0.00021095,4]
[365247879,1749563440892,-190.0,0.00021095,4]
[365247881,1749563440902,-460.0,0.00021095,4]
[365247883,1749563440911,-440.0,0.00021095,4]
[365247885,1749563440921,-460.0,0.00021095,4]
[365247887,1749563440933,-754.0,0.00021095,4]
[365247889,1749563440942,-430.0,0.00021095,4]
[365247891,1749563440952,-272.71087325,0.00021095,4]
[365247896,1749563440995,-2241.21912675,0.00021095,4]
[365247898,1749563441005,-460.0,0.00021095,4]
[365247900,1749563441015,-503.61,0.00021095,4]
[365247902,1749563441027,-440.0,0.00021095,4]
[365247904,1749563441036,-460.0,0.00021095,4]
[365247906,1749563441046,-440.0,0.00021095,4]
[365247908,1749563441056,-443.46620302,0.00021095,4]
[365247910,1749563441065,-460.0,0.00021095,4]
[365247912,1749563441075,-460.0,0.00021095,4]
[365247914,1749563441084,-500.0,0.00021095,4]
[365247916,1749563441094,-201.64562357,0.00021095,4]
[365247919,1749563441106,-305.90019204,0.00021095,4]
[365247921,1749563441116,-430.0,0.00021095,4]
[365247923,1749563441125,-460.0,0.00021095,4]
[365247925,1749563441134,-430.0,0.00021095,4]
[365247927,1749563441144,-460.0,0.00021095,4]
[365247929,1749563441153,-460.0,0.00021095,4]
[365247931,1749563441163,-460.0,0.00021095,4]
[365247933,1749563441173,-943.3,0.00021095,4]
[365247935,1749563441181,-1059.77,0.00021095,4]
[365247937,1749563441191,-229.48733796,0.00021095,4]
[365247939,1749563441200,-460.0,0.00021095,4]
[365247941,1749563441210,-460.0,0.00021095,4]
[365247943,1749563441219,-150.7500414,0.00021095,4]
[365247945,1749563441231,-309.2499586,0.00021095,4]
[365247947,1749563441240,-542.58357322,0.00021095,4]
[365247949,1749563441248,-460.0,0.00021095,4]
[365247951,1749563441258,-460.0,0.00021095,4]
[365247953,1749563441267,-1711.19,0.00021095,4]
[365247955,1749563441277,-440.0,0.00021095,4]
[365247957,1749563441287,-460.0,0.00021095,4]
[365247959,1749563441296,-460.0,0.00021095,4]
[365247961,1749563441306,-509.67,0.00021095,4]
[365247963,1749563441323,-569.4,0.00021095,4]
[365247965,1749563441333,-440.0,0.00021095,4]
[365247967,1749563441343,-460.0,0.00021095,4]
[365247969,1749563441353,-331.90536068,0.00021095,4]
[365247971,1749563441366,-669.17463932,0.00021095,4]
[365247973,1749563441376,-118.60905459,0.00021095,4]
[365247976,1749563441392,-341.39094541,0.00021095,4]
[365247978,1749563441401,-460.0,0.00021095,4]
[365247980,1749563441410,-440.0,0.00021095,4]
[365247982,1749563441419,-440.0,0.00021095,4]
[365247984,1749563441428,-611.26,0.00021095,2]
[365247986,1749563441437,-460.0,0.00021095,4]
[365247988,1749563441446,-440.0,0.00021095,4]
[365247990,1749563441456,-300.0,0.00021095,4]
[365247992,1749563441465,-440.0,0.00021095,4]
[365247994,1749563441474,-460.0,0.00021095,4]
[365247996,1749563441483,-460.0,0.00021095,4]
[365247998,1749563441492,-452.94259567,0.00021095,4]
[365248000,1749563441501,-440.0,0.00021095,4]
[365248002,1749563441510,-1841.83,0.00021095,4]
[365248004,1749563441522,-2147.82,0.00021095,4]
[365248006,1749563441531,-450.0,0.00021095,4]
[365248008,1749563441541,-2220.15,0.00021095,4]
[365248010,1749563441550,-460.0,0.00021095,4]
[365248012,1749563441559,-460.0,0.00021095,4]
[365248014,1749563441568,-430.0,0.00021095,4]
[365248016,1749563441577,-440.0,0.00021095,4]
[365248018,1749563441587,-460.0,0.00021095,4]
[365248020,1749563441596,-460.0,0.00021095,4]
[365248022,1749563441605,-2766.14,0.00021095,4]
[365248024,1749563441614,-460.0,0.00021095,4]
[365248026,1749563441624,-440.0,0.00021095,4]
[365248028,1749563441633,-460.0,0.00021095,4]
[365248030,1749563441642,-556.55,0.00021095,4]
[365248032,1749563441651,-460.0,0.00021095,4]
[365248034,1749563441660,-430.0,0.00021095,4]
[365248036,1749563441670,-472.19,0.00021095,4]
[365248038,1749563441679,-460.0,0.00021095,4]
[365248040,1749563441689,-460.0,0.00021095,4]
[365248042,1749563441699,-460.0,0.00021095,4]
[365248044,1749563441708,-460.0,0.00021095,4]
[365248046,1749563441717,-1794.45,0.00021095,4]
[365248048,1749563441725,-460.0,0.00021095,4]
[365248050,1749563441734,-460.0,0.00021095,4]
[365248052,1749563441744,-431.42807953,0.00021095,4]
[365248054,1749563441753,-460.0,0.00021095,4]
[365248056,1749563441762,-430.0,0.00021095,4]
[365248058,1749563441772,-460.0,0.00021095,4]
[365248060,1749563441781,-460.0,0.00021095,4]
[365248062,1749563441791,-460.0,0.00021095,4]
[365248064,1749563441800,-1655.44,0.00021095,4]
[365248066,1749563441809,-460.0,0.00021095,4]
[365248068,1749563441818,-460.0,0.00021095,4]
[365248070,1749563441828,-460.0,0.00021095,4]
[365248072,1749563441838,-460.0,0.00021095,4]
[365248074,1749563441847,-460.0,0.00021095,4]
[365248076,1749563441857,-591.24,0.00021095,4]
[365248078,1749563441867,-1413.84,0.00021095,4]
[365248080,1749563441876,-440.0,0.00021095,4]
[365248082,1749563441885,-440.0,0.00021095,4]
[365248084,1749563441895,-1870.86,0.00021095,4]
[365248086,1749563441904,-460.0,0.00021095,4]
[365248088,1749563441913,-460.0,0.00021095,4]
[365248090,1749563441923,-460.0,0.00021095,4]
[365248092,1749563441933,-640.93,0.00021095,4]
[365248094,1749563441943,-440.0,0.00021095,2]
[365248096,1749563441952,-440.0,0.00021095,4]
[365248098,1749563441962,-460.0,0.00021095,4]
[365248100,1749563441973,-460.0,0.00021095,4]
[365248102,1749563441983,-440.0,0.00021095,4]
[365248104,1749563441992,-440.0,0.00021095,4]
[365248106,1749563442002,-628.3,0.00021095,4]
[365248108,1749563442012,-251.69572332,0.00021095,4]
[365248110,1749563442021,-460.0,0.00021095,4]
[365248112,1749563442031,-661.5,0.00021095,4]
[365248114,1749563442040,-430.0,0.00021095,4]
[365248116,1749563442051,-1028.94,0.00021095,4]
[365248118,1749563442062,-917.92,0.00021095,4]
[365248120,1749563442071,-412.44957625,0.00021095,4]
[365248122,1749563442081,-460.0,0.00021095,4]
[365248124,1749563442091,-536.72,0.00021095,4]
[365248126,1749563442100,-474.78427691,0.00021095,4]
[365248128,1749563442110,-460.0,0.00021095,4]
[365248130,1749563442121,-4059.84,0.000211,2]
[365248132,1749563442130,-500.0,0.00021368,4]
[365248134,1749563442140,-500.0,0.00021368,4]
[365248136,1749563442151,-524.16,0.00021368,4]
[365248138,1749563442161,-440.0,0.00021369,4]
[365248140,1749563442170,-460.0,0.00021369,4]
[365248142,1749563442179,-460.0,0.00021369,4]
[365248144,1749563442189,-440.0,0.00021369,4]
[365248146,1749563442199,-460.0,0.00021369,4]
[365248148,1749563442208,-460.0,0.00021369,4]
[365248150,1749563442217,-410.0,0.00021369,4]
[365248152,1749563442227,-460.0,0.00021369,4]
[365248154,1749563442236,-310.8206644,0.00021369,4]
[365248156,1749563442246,-356.57186126,0.00021369,4]
[365248158,1749563442255,-460.0,0.00021369,4]
[365248160,1749563442264,-456.0948715,0.00021369,4]
[365248162,1749563442275,-460.0,0.00021369,4]
[365248164,1749563442284,-360.0,0.00021369,4]
[365248166,1749563442293,-460.0,0.00021369,4]
[365248168,1749563442303,-473.87,0.00021369,4]
[365248170,1749563442312,-430.63438417,0.00021369,4]
[365248172,1749563442322,-460.0,0.00021369,4]
[365248174,1749563442331,-576.76099412,0.00021369,4]
[365248176,1749563442341,-405.5747463,0.00021369,4]
[365248178,1749563442351,-502.87760963,0.00021369,4]
[365248180,1749563442361,-410.44351872,0.00021369,4]
[365248182,1749563442370,-460.0,0.00021369,4]
[365248184,1749563442379,-421.97511921,0.00021369,4]
[365248186,1749563442389,-453.19006864,0.00021369,4]
[365248188,1749563442399,-431.8900728,0.00021369,4]
[365248190,1749563442408,-460.0,0.00021369,4]
[365248192,1749563442417,-460.0,0.00021369,4]
[365248194,1749563442426,-460.0,0.00021369,4]
[365248196,1749563442436,-460.0,0.00021369,4]
[365248198,1749563442445,-460.0,0.00021369,4]
[365248200,1749563442454,-460.0,0.00021369,4]
[365248202,1749563442464,-470.0,0.00021369,4]
[365248204,1749563442473,-410.0,0.00021369,4]
[365248206,1749563442482,-410.0,0.00021369,4]
[365248208,1749563442491,-370.0,0.00021369,4]
[365248210,1749563442501,-410.0,0.00021369,4]
[365248212,1749563442510,-400.0,0.00021369,4]
[365248214,1749563442520,-460.0,0.00021369,4]
[365248216,1749563442530,-460.0,0.00021369,4]
[365248218,1749563442540,-174.49008992,0.00021369,4]
[365248220,1749563442549,-410.0,0.00021369,4]
[365248222,1749563442559,-460.0,0.00021369,4]
[365248223,1749563442568,-460.0,0.00021369,4]
[365248224,1749563442577,-460.0,0.00021369,4]
[365248225,1749563442586,-460.0,0.00021369,4]
[365248226,1749563442595,-460.0,0.00021369,4]
[365248227,1749563442604,-440.0,0.00021369,4]
[365248228,1749563442613,-410.0,0.00021369,4]
[365248229,1749563442623,-460.0,0.00021369,4]
[365248230,1749563442632,-460.0,0.00021369,4]
[365248231,1749563442641,-410.0,0.00021369,4]
[365248232,1749563442651,-460.0,0.00021369,4]
[365248233,1749563442660,-460.0,0.00021369,4]
[365248234,1749563442669,-410.0,0.00021369,4]
[365248235,1749563442679,-460.0,0.00021369,4]
[365248236,1749563442688,-460.0,0.00021369,4]
[365248237,1749563442697,-460.0,0.00021369,4]
[365248238,1749563442707,-460.0,0.00021369,4]
[365248239,1749563442716,-460.0,0.00021369,4]
[365248241,1749563442725,-460.0,0.00021369,4]
[365248244,1749563442734,-390.0,0.00021369,4]
[365248245,1749563442744,-460.0,0.00021369,4]
[365248247,1749563442752,-460.0,0.00021369,4]
[365248249,1749563442762,-430.0,0.00021369,4]
[365248251,1749563442772,-410.0,0.00021369,4]
[365248253,1749563442781,-410.0,0.00021369,4]
[365248255,1749563442790,-410.0,0.00021369,4]
[365248257,1749563442799,-410.0,0.00021369,4]
[365248259,1749563442808,-460.0,0.00021369,4]
[365248262,1749563442817,-460.0,0.00021369,4]
[365248265,1749563442825,-507.83572784,0.00021369,4]
[365248267,1749563442835,-460.0,0.00021369,4]
[365248270,1749563442843,-460.0,0.00021369,4]
[365248272,1749563442853,-460.0,0.00021369,4]
[365248274,1749563442863,-420.0,0.00021369,4]
[365248277,1749563442872,-460.0,0.00021369,4]
[365248281,1749563442882,-460.0,0.00021369,4]
[365248284,1749563442893,-460.0,0.00021369,4]
[365248291,1749563442906,-460.0,0.00021369,4]
[365248294,1749563442916,-1110.38,0.00021369,4]
[365248299,1749563442927,-1070.51,0.00021369,4]
[365248306,1749563442938,-485.70965964,0.00021369,4]
[365248309,1749563442948,-460.0,0.00021369,4]
[365248312,1749563442965,-754.0,0.00021369,4]
[365248315,1749563442979,-2513.93,0.00021369,4]
[365248318,1749563442990,-460.0,0.00021369,4]
[365248320,1749563443000,-503.61,0.00021369,4]
[365248324,1749563443012,-460.0,0.00021369,4]
[365248327,1749563443024,-410.0,0.00021369,4]
[365248329,1749563443034,-460.0,0.00021369,4]
[365248332,1749563443045,-440.0,0.00021369,4]
[365248334,1749563443057,-234.63043012,0.00021369,4]
[365248336,1749563443068,-460.0,0.00021369,4]
[365248338,1749563443078,-440.0,0.00021369,4]
[365248354,1749563443217,-943.3,0.00021369,4]
[365248356,1749563443227,-1059.77,0.00021369,4]
[365248358,1749563443236,-430.0,0.00021369,4]
[365248360,1749563443246,-460.0,0.00021369,4]
[365248362,1749563443255,-460.0,0.00021369,4]
[365248364,1749563443265,-460.0,0.00021369,4]
[365248366,1749563443276,-460.0,0.00021369,4]
[365248368,1749563443285,-1711.19,0.00021369,4]
[365248370,1749563443295,-460.0,0.00021369,4]
[365248372,1749563443304,-440.0,0.00021369,4]
[365248374,1749563443315,-509.67,0.00021369,4]
[365248376,1749563443324,-569.4,0.00021369,4]
[365248378,1749563443333,-460.0,0.00021369,4]
[365248380,1749563443342,-1001.08,0.00021369,4]
[365248382,1749563443352,-420.0,0.00021369,4]
[365248384,1749563443361,-460.0,0.00021369,4]
[365248386,1749563443371,-611.26,0.00021369,2]
[365248388,1749563443380,-444.3161716,0.00021369,4]
[365248390,1749563443390,-460.0,0.00021369,4]
[365248392,1749563443400,-460.0,0.00021369,4]
[365248394,1749563443409,-1841.83,0.00021369,4]
[365248396,1749563443419,-2147.82,0.00021369,4]
[365248398,1749563443428,-2220.15,0.00021369,4]
[365248400,1749563443437,-460.0,0.00021369,4]
[365248402,1749563443447,-380.0,0.00021369,4]
[365248404,1749563443457,-561.23567481,0.00021369,4]
[365248407,1749563443467,-460.0,0.00021369,4]
[365248409,1749563443477,-2766.14,0.00021369,4]
[365248411,1749563443487,-270.0,0.00021369,4]
[365248413,1749563443497,-460.0,0.00021369,4]
[365248415,1749563443506,-556.55,0.00021369,4]
[365248417,1749563443518,-410.0,0.00021369,4]
[365248419,1749563443535,-472.19,0.00021369,4]
[365248421,1749563443544,-460.0,0.00021369,4]
[365248423,1749563443554,-460.0,0.00021369,4]
[365248425,1749563443563,-460.0,0.00021369,4]
[365248427,1749563443573,-460.0,0.00021369,4]
[365248429,1749563443583,-1794.45,0.00021369,4]
[365248431,1749563443592,-440.0,0.00021369,4]
[365248433,1749563443602,-460.0,0.00021369,4]
[365248435,1749563443611,-440.0,0.00021369,4]
[365248437,1749563443620,-167.26060975,0.00021369,4]
[365248439,1749563443630,-430.0,0.00021369,4]
[365248441,1749563443639,-1655.44,0.00021369,4]
[365248444,1749563443650,-460.0,0.00021369,4]
[365248446,1749563443659,-460.0,0.00021369,4]
[365248447,1749563443668,-420.0,0.00021369,4]
[365248450,1749563443677,-410.0,0.00021369,4]